fUST/lending_fUST_20250606
["ID","MTS","AMOUNT","RATE_DAILY","PERIOD"]
[364646930,1749178234762,-440.0,0.00023515,2]
[364646931,1749178234772,-440.0,0.00023515,2]
[364646932,1749178234782,-440.0,0.00023515,2]
[364646933,1749178234791,-440.0,0.00023515,2]
[364646934,1749178234800,-440.0,0.00023515,2]
[364646935,1749178234810,-440.0,0.00023515,2]
[364646936,1749178234819,-440.0,0.00023515,2]
[364646937,1749178234829,-440.0,0.00023515,2]
[364646938,1749178234838,-440.0,0.00023515,2]
[364646939,1749178234847,-827.07,0.00023515,2]
[364646940,1749178234857,-440.0,0.00023515,2]
[364646941,1749178234867,-441.06533516,0.00023515,2]
[364646942,1749178234876,-468.22337367,0.00023521,9]
[364646943,1749178234885,-417.59547316,0.00023521,2]
[364646944,1749178234895,-440.0,0.00023521,2]
[364646945,1749178234904,-440.0,0.00023521,2]
[364646946,1749178234913,-440.0,0.00023521,2]
[364646947,1749178234923,-440.0,0.00023521,2]
[364646948,1749178234932,-440.0,0.00023521,2]
[364646949,1749178234942,-440.0,0.00023521,2]
[364646950,1749178234952,-468.22337367,0.0002359,9]
[364646951,1749178234962,-468.22337367,0.00023659,9]
[364646952,1749178234971,-500.0,0.00023689,2]
[364646953,1749178234981,-532.22431097,0.00023689,2]
[364646954,1749178234990,-533.34799876,0.00023689,2]
[364646955,1749178235000,-468.22337367,0.00023728,9]
[364646956,1749178235009,-206.0,0.0002378,2]
[364646957,1749178235019,-440.0,0.00023788,2]
[364646958,1749178235028,-473.31084959,0.00023788,2]
[364646959,1749178235038,-194.27071414,0.00023788,2]
[364646960,1749178235047,-440.0,0.00023788,2]
[364646961,1749178235056,-440.0,0.00023788,2]
[364646962,1749178235065,-440.0,0.00023788,2]
[364646963,1749178235075,-440.0,0.00023788,2]
[364646964,1749178235084,-440.0,0.00023788,2]
[364646965,1749178235093,-440.0,0.00023788,2]
[364646966,1749178235102,-440.0,0.00023788,2]
[364646967,1749178235112,-440.0,0.00023788,2]
[364646968,1749178235122,-440.0,0.00023788,2]
[364646969,1749178235133,-440.0,0.00023788,2]
[364646970,1749178235143,-440.0,0.00023788,2]
[364646971,1749178235152,-440.0,0.00023788,2]
[364646972,1749178235162,-440.0,0.00023788,2]
[364646973,1749178235272,-440.0,0.00023788,2]
[364646974,1749178235283,-440.0,0.00023788,2]
[364646975,1749178235293,-440.0,0.00023788,2]
[364646976,1749178235303,-440.0,0.00023788,2]
[364646977,1749178235312,-440.0,0.00023788,2]
[364646978,1749178235321,-440.0,0.00023788,2]
[364646979,1749178235331,-440.0,0.00023788,2]
[364646980,1749178235341,-440.0,0.00023788,2]
[364646981,1749178235350,-440.0,0.00023788,2]
[364646982,1749178235360,-435.79190552,0.00023788,2]
[364646983,1749178235370,-440.0,0.00023788,2]
[364646984,1749178235379,-440.0,0.00023788,2]
[364646985,1749178235388,-440.0,0.00023788,2]
[364646986,1749178235398,-440.0,0.00023788,2]
[364646987,1749178235407,-440.0,0.00023788,2]
[364646988,1749178235417,-440.0,0.00023788,2]
[364646989,1749178235426,-440.0,0.00023788,2]
[364646990,1749178235436,-440.0,0.00023788,2]
[364646991,1749178235446,-440.0,0.00023788,2]
[364646992,1749178235455,-438.53510605,0.00023788,2]
[364646993,1749178235465,-440.0,0.00023788,2]
[364646994,1749178235474,-440.0,0.00023788,2]
[364646995,1749178235483,-440.0,0.00023788,2]
[364646996,1749178235492,-440.0,0.00023788,2]
[364646997,1749178235502,-440.0,0.00023788,2]
[364646998,1749178235511,-440.0,0.00023788,2]
[364646999,1749178235521,-440.0,0.00023788,2]
[364647000,1749178235530,-440.0,0.00023788,2]
[364647001,1749178235541,-440.0,0.00023788,2]
[364647002,1749178235550,-440.0,0.00023788,2]
[364647003,1749178235560,-440.0,0.00023788,2]
[364647004,1749178235571,-440.0,0.00023788,2]
[364647005,1749178235581,-459.65328235,0.00023788,2]
[364647006,1749178235591,-440.0,0.00023788,2]
[364647007,1749178235600,-440.0,0.00023789,2]
[364647008,1749178235611,-440.0,0.00023789,2]
[364647009,1749178235620,-440.0,0.00023789,2]
[364647010,1749178235630,-440.0,0.00023789,2]
[364647011,1749178235640,-440.0,0.00023789,2]
[364647012,1749178235650,-429.84279556,0.00023789,2]
[364647013,1749178235660,-440.0,0.00023789,2]
[364647014,1749178235670,-440.0,0.00023789,2]
[364647015,1749178235680,-440.0,0.00023789,2]
[364647016,1749178235690,-292.07417574,0.00023789,2]
[364647017,1749178235699,-827.07,0.00023789,2]
[364647018,1749178235708,-440.0,0.00023789,2]
[364647019,1749178235718,-440.0,0.00023795,2]
[364647020,1749178235728,-440.0,0.00023795,2]
[364647021,1749178235737,-440.0,0.00023795,2]
[364647022,1749178235747,-440.0,0.00023795,2]
[364647023,1749178235756,-440.0,0.00023795,2]
[364647024,1749178235766,-440.0,0.00023795,2]
[364647025,1749178235776,-468.22337367,0.00023797,9]
[364647026,1749178235787,-500.0,0.00023825,2]
[364647027,1749178235797,-159.556441,0.00023825,20]
[364647028,1749178235806,-318.055217,0.00023826,3]
[364647029,1749178235815,-159.556441,0.00023827,30]
[364647030,1749178235825,-468.22337367,0.00023866,10]
[364647031,1749178235834,-468.22337367,0.00023934,10]
[364647032,1749178235843,-513.71944578,0.00023949,2]
[364647033,1749178235853,-1424.91,0.00024,4]
[364647034,1749178235862,-468.22337367,0.00024003,10]
[364647035,1749178235872,-206.0,0.0002405,2]
[364647036,1749178235881,-500.0,0.00024052,5]
[364647037,1749178235890,-1010.10758353,0.00024054,2]
[364647038,1749178235900,-513.72467736,0.00024054,2]
[364647039,1749178235910,-1000.0,0.00024054,2]
[364647040,1749178235921,-440.0,0.00024062,2]
[364647041,1749178235931,-440.0,0.00024062,2]
[364647042,1749178235940,-440.0,0.00024062,2]
[364647043,1749178235950,-440.0,0.00024062,2]
[364647044,1749178235959,-440.0,0.00024062,2]
[364647045,1749178235968,-445.10079058,0.00024062,2]
[364647046,1749178235978,-440.0,0.00024062,2]
[364647047,1749178235987,-440.0,0.00024062,2]
[364647048,1749178235996,-440.0,0.00024062,2]
[364647049,1749178236006,-440.0,0.00024062,2]
[364647050,1749178236016,-440.0,0.00024062,2]
[364647051,1749178236026,-440.0,0.00024062,2]
[364647052,1749178236036,-440.0,0.00024062,2]
[364647053,1749178236045,-440.0,0.00024062,2]
[364647054,1749178236054,-440.0,0.00024062,2]
[364647055,1749178236064,-440.0,0.00024062,2]
[364647056,1749178236074,-440.0,0.00024062,2]
[364647057,1749178236083,-440.0,0.00024062,2]
[364647058,1749178236092,-440.0,0.00024062,2]
[364647059,1749178236102,-440.0,0.00024062,2]
[364647060,1749178236112,-440.0,0.00024062,2]
[364647061,1749178236124,-440.0,0.00024062,2]
[364647062,1749178236134,-440.0,0.00024062,2]
[364647063,1749178236143,-440.0,0.00024062,2]
[364647064,1749178236153,-440.0,0.00024062,2]
[364647065,1749178236162,-440.0,0.00024062,2]
[364647066,1749178236172,-440.0,0.00024062,2]
[364647067,1749178236181,-440.0,0.00024062,2]
[364647068,1749178236191,-346.74440462,0.00024062,2]
[364647069,1749178236201,-440.0,0.00024062,2]
[364647070,1749178236210,-440.0,0.00024062,2]
[364647071,1749178236219,-440.0,0.00024062,2]
[364647072,1749178236229,-440.0,0.00024062,2]
[364647073,1749178236239,-440.0,0.00024062,2]
[364647074,1749178236248,-440.0,0.00024062,2]
[364647075,1749178236258,-440.0,0.00024062,2]
[364647076,1749178236268,-440.0,0.00024062,2]
[364647077,1749178236277,-440.0,0.00024062,2]
[364647078,1749178236288,-454.16350003,0.00024062,2]
[364647079,1749178236298,-440.0,0.00024062,2]
[364647080,1749178236307,-440.0,0.00024062,2]
[364647081,1749178236317,-440.0,0.00024062,2]
[364647082,1749178236326,-440.0,0.00024062,2]
[364647083,1749178236336,-440.0,0.00024062,2]
[364647084,1749178236346,-440.0,0.00024062,2]
[364647085,1749178236355,-430.10114179,0.00024063,2]
[364647086,1749178236364,-440.0,0.00024063,2]
[364647087,1749178236373,-440.0,0.00024063,2]
[364647088,1749178236383,-440.0,0.00024063,2]
[364647089,1749178236393,-440.0,0.00024063,2]
[364647090,1749178236403,-440.0,0.00024063,2]
[364647091,1749178236412,-440.0,0.00024063,2]
[364647092,1749178236422,-440.0,0.00024063,2]
[364647093,1749178236432,-827.07,0.00024063,2]
[364647094,1749178236441,-440.0,0.00024063,2]
[364647095,1749178236450,-363.36272787,0.00024069,2]
[364647096,1749178236460,-440.0,0.00024069,2]
[364647097,1749178236469,-440.0,0.00024069,2]
[364647098,1749178236479,-440.0,0.00024069,2]
[364647099,1749178236489,-440.0,0.00024069,2]
[364647100,1749178236499,-440.0,0.00024069,2]
[364647101,1749178236508,-468.22337367,0.00024072,10]
[364647102,1749178236518,-468.22337367,0.00024141,10]
[364647103,1749178236528,-468.22337367,0.0002421,10]
[364647104,1749178236538,-10635.10790259,0.00024227,2]
[364647105,1749178236548,-1000.0,0.00024237,2]
[364647106,1749178236558,-500.0,0.00024252,2]
[364647107,1749178236568,-468.22337367,0.00024279,10]
[364647108,1749178236578,-2000.0,0.000243,2]
[364647109,1749178236588,-2000.0,0.000243,2]
[364647110,1749178236597,-924.0,0.000243,2]
[364647111,1749178236606,-966.266,0.00024309,2]
[364647112,1749178236616,-709.0,0.00024309,2]
[364647113,1749178236626,-1252.117,0.00024309,2]
[364647114,1749178236635,-151.94,0.00024309,2]
[364647115,1749178236644,-151.0,0.00024314,7]
[364647116,1749178236654,-151.0,0.00024314,7]
[364647117,1749178236664,-152.820073,0.00024314,7]
[364647118,1749178236674,-151.737453,0.00024314,7]
[364647119,1749178236683,-12677.18918728,0.00024314,30]
[364647120,1749178236693,-151.0,0.00024315,7]
[364647121,1749178236703,-151.0,0.00024315,7]
[364647122,1749178236712,-151.0,0.00024315,7]
[364647123,1749178236722,-151.0,0.00024315,7]
[364647124,1749178236731,-151.0,0.00024315,7]
[364647125,1749178236740,-151.0,0.00024315,7]
[364647126,1749178236750,-151.0,0.00024315,7]
[364647127,1749178236759,-151.0,0.00024315,7]
[364647128,1749178236769,-151.0,0.00024315,7]
[364647129,1749178236778,-151.0,0.00024315,7]
[364647130,1749178236788,-151.0,0.00024315,7]
[364647131,1749178236800,-151.0,0.00024315,7]
[364647132,1749178236810,-151.0,0.00024315,7]
[364647133,1749178236819,-151.0,0.00024315,7]
[364647134,1749178236828,-151.0,0.00024315,7]
[364647135,1749178236837,-151.0,0.00024315,7]
[364647136,1749178236846,-151.0,0.00024315,7]
[364647137,1749178236856,-235.865008,0.00024315,7]
[364647138,1749178236865,-151.0,0.00024315,7]
[364647139,1749178236875,-151.0,0.00024315,7]
[364647140,1749178236884,-151.0,0.00024315,7]
[364647141,1749178236893,-151.0,0.00024315,7]
[364647142,1749178236902,-151.0,0.00024315,7]
[364647143,1749178236911,-151.0,0.00024315,7]
[364647144,1749178236921,-151.0,0.00024315,7]
[364647145,1749178236930,-259.605386,0.00024315,7]
[364647146,1749178236939,-152.099702,0.00024315,7]
[364647147,1749178236948,-160.0,0.00024316,3]
[364647148,1749178236958,-161.05064448,0.00024316,5]
[364647149,1749178236968,-392.69,0.00024316,3]
[364647150,1749178236977,-196.34,0.00024316,3]
[364647151,1749178236987,-589.05,0.00024316,3]
[364647152,1749178236996,-206.0,0.0002432,2]
[364647153,1749178237006,-76.4941563,0.00024324,7]
[364647154,1749178237095,-440.0,0.00023247,2]
[364647155,1749178237105,-713.2731657,0.00024324,7]
[364647156,1749178237115,-789.767322,0.00024324,7]
[364647157,1749178237129,-789.767322,0.00024324,7]
[364647158,1749178237138,-789.767322,0.00024324,7]
[364647159,1749178237147,-789.767322,0.00024324,7]
[364647160,1749178237157,-789.767322,0.00024324,7]
[364647161,1749178237167,-789.767322,0.00024324,7]
[364647162,1749178237176,-789.767322,0.00024324,7]
[364647163,1749178237185,-789.767322,0.00024324,7]
[364647164,1749178237195,-789.767322,0.00024324,7]
[364647165,1749178237205,-789.767322,0.00024324,7]
[364647166,1749178237216,-789.767322,0.00024324,7]
[364647167,1749178237225,-789.767322,0.00024324,7]
[364647168,1749178237234,-789.767322,0.00024324,7]
[364647169,1749178237243,-789.767322,0.00024324,7]
[364647170,1749178237252,-789.767322,0.00024324,7]
[364647171,1749178237261,-789.767322,0.00024324,7]
[364647172,1749178237271,-789.767322,0.00024324,7]
[364647173,1749178237280,-789.767322,0.00024324,7]
[364647174,1749178237291,-789.767312,0.00024324,7]
[364647175,1749178237300,-151.0,0.00024324,7]
[364647176,1749178237310,-241.685088,0.00024324,7]
[364647177,1749178237320,-342.403365,0.00024324,7]
[364647178,1749178237329,-342.403365,0.00024324,7]
[364647179,1749178237339,-342.403365,0.00024324,7]
[364647180,1749178237348,-342.403365,0.00024324,7]
[364647181,1749178237357,-342.403365,0.00024324,7]
[364647182,1749178237367,-342.403365,0.00024324,7]
[364647183,1749178237377,-342.403365,0.00024324,7]
[364647184,1749178237386,-342.403365,0.00024324,7]
[364647185,1749178237396,-342.403365,0.00024324,7]
[364647186,1749178237405,-342.403365,0.00024324,7]
[364647187,1749178237415,-342.403365,0.00024324,7]
[364647188,1749178237425,-342.403365,0.00024324,7]
[364647189,1749178237435,-342.403365,0.00024324,7]
[364647190,1749178237445,-342.403365,0.00024324,7]
[364647191,1749178237455,-342.403365,0.00024324,7]
[364647192,1749178237464,-342.403365,0.00024324,7]
[364647193,1749178237473,-342.403365,0.00024324,7]
[364647194,1749178237483,-342.403365,0.00024324,7]
[364647195,1749178237492,-342.403365,0.00024324,7]
[364647196,1749178237502,-342.403368,0.00024324,7]
[364647197,1749178237512,-151.0,0.00024324,7]
[364647198,1749178237522,-151.0,0.00024324,7]
[364647199,1749178237532,-151.0,0.00024324,7]
[364647200,1749178237542,-203.447584,0.00024324,7]
[364647201,1749178237552,-151.0,0.00024326,7]
[364647202,1749178237562,-153.572149,0.00024326,7]
[364647203,1749178237573,-151.0,0.00024326,7]
[364647204,1749178237583,-151.0,0.00024326,7]
[364647205,1749178237593,-151.0,0.00024326,7]
[364647206,1749178237603,-151.0,0.00024326,7]
[364647207,1749178237612,-211.269124,0.00024326,7]
[364647208,1749178237622,-151.0,0.00024326,7]
[364647209,1749178237631,-151.0,0.00024326,7]
[364647210,1749178237641,-151.0,0.00024326,7]
[364647211,1749178237741,-151.0,0.00024326,7]
[364647212,1749178237752,-151.0,0.00024326,7]
[364647213,1749178237762,-151.0,0.00024326,7]
[364647214,1749178237772,-151.0,0.00024326,7]
[364647215,1749178237782,-151.0,0.00024326,7]
[364647216,1749178237792,-151.0,0.00024326,7]
[364647217,1749178237801,-151.0,0.00024326,7]
[364647218,1749178237811,-151.0,0.00024326,7]
[364647219,1749178237820,-256.916923,0.00024326,7]
[364647220,1749178237830,-151.0,0.00024326,7]
[364647221,1749178237840,-151.0,0.00024326,7]
[364647222,1749178237849,-151.0,0.00024326,7]
[364647223,1749178237859,-151.0,0.00024326,7]
[364647224,1749178237868,-151.0,0.00024326,7]
[364647226,1749178237878,-151.0,0.00024326,7]
[364647227,1749178237887,-151.0,0.00024326,7]
[364647228,1749178237897,-151.0,0.00024326,7]
[364647229,1749178237906,-151.0,0.00024326,7]
[364647230,1749178237916,-292.852631,0.00024326,7]
[364647231,1749178237925,-154.232203,0.00024326,7]
[364647232,1749178237935,-151.0,0.00024326,7]
[364647233,1749178237944,-151.0,0.00024326,7]
[364647234,1749178237953,-151.0,0.00024326,7]
[364647235,1749178237962,-151.0,0.00024326,7]
[364647236,1749178237971,-218.862275,0.00024326,7]
[364647237,1749178237981,-151.0,0.00024326,7]
[364647238,1749178237990,-151.0,0.00024326,7]
[364647240,1749178238000,-279.841274,0.00024326,7]
[364647241,1749178238010,-151.0,0.00024326,7]
[364647243,1749178238019,-151.0,0.00024326,7]
[364647245,1749178238028,-151.0,0.00024326,7]
[364647247,1749178238038,-151.0,0.00024326,7]
[364647248,1749178238048,-151.0,0.00024326,7]
[364647249,1749178238057,-171.72499,0.00024326,7]
[364647250,1749178238067,-151.491359,0.00024326,7]
[364647251,1749178238077,-478.78037458,0.00024326,2]
[364647252,1749178238086,-183.321715,0.00024327,7]
[364647253,1749178238095,-183.321715,0.00024327,7]
[364647254,1749178238105,-183.321715,0.00024327,7]
[364647255,1749178238114,-183.321715,0.00024327,7]
[364647256,1749178238127,-183.321715,0.00024327,7]
[364647257,1749178238136,-183.321715,0.00024327,7]
[364647258,1749178238145,-183.321715,0.00024327,7]
[364647259,1749178238155,-183.321715,0.00024327,7]
[364647261,1749178238165,-183.321715,0.00024327,7]
[364647263,1749178238174,-183.321715,0.00024327,7]
[364647264,1749178238183,-183.321715,0.00024327,7]
[364647267,1749178238201,-183.321715,0.00024327,7]
[364647269,1749178238213,-183.321715,0.00024327,7]
[364647271,1749178238223,-183.321715,0.00024327,7]
[364647272,1749178238233,-183.321715,0.00024327,7]
[364647274,1749178238243,-183.321715,0.00024327,7]
[364647276,1749178238252,-183.321715,0.00024327,7]
[364647278,1749178238262,-183.321715,0.00024327,7]
[364647280,1749178238271,-183.321715,0.00024327,7]
[364647281,1749178238281,-183.32172,0.00024327,7]
[364647283,1749178238293,-151.0,0.00024327,7]
[364647285,1749178238303,-151.0,0.00024327,7]
[364647287,1749178238313,-151.0,0.00024327,7]
[364647289,1749178238323,-151.0,0.00024327,7]
[364647291,1749178238333,-192.3323,0.00024327,7]
[364647293,1749178238342,-163166.29784372,0.00024327,20]
[364647305,1749178238474,-500.0,0.00020486,2]
[364647307,1749178238484,-440.0,0.00023521,2]
[364647309,1749178238493,-440.0,0.00023795,2]
[364647310,1749178238503,-440.0,0.00024069,2]
[364647312,1749178238512,-1843578.53811463,0.00024327,20]
[364647314,1749178238527,-65713.7799949,0.00024327,20]
[364647316,1749178238541,-390.95103842,0.00024327,20]
[364647506,1749178240942,-500.0,0.00022678,2]
[364647508,1749178240951,-2455.79259607,0.00024327,20]
[364647511,1749178240965,-25549.37110621,0.00024327,20]
[364648097,1749178246676,-440.0,0.00022699,2]
[364648099,1749178246689,-440.0,0.00022973,2]
[364648101,1749178246699,-440.0,0.0002324,2]
[364648103,1749178246709,-440.0,0.0002324,2]
[364648105,1749178246718,-440.0,0.00023247,2]
[364648107,1749178246728,-440.0,0.00023514,2]
[364648109,1749178246738,-440.0,0.00023514,2]
[364648111,1749178246747,-440.0,0.00023521,2]
[364648114,1749178246756,-440.0,0.00023788,2]
[364648116,1749178246765,-440.0,0.00023788,2]
[364648118,1749178246775,-440.0,0.00023795,2]
[364648120,1749178246784,-540.18784682,0.00024062,2]
[364648122,1749178246793,-440.0,0.00024062,2]
[364648124,1749178246802,-440.0,0.00024069,2]
[364648126,1749178246812,-151.0,0.00024327,7]
[364648128,1749178246821,-152.027987,0.00024327,7]
[364648130,1749178246831,-93436.78416618,0.00024327,20]
[364648936,1749178554692,7166.76406775,0.00024658,120]
[364648937,1749178574583,209.798812,0.00013699,2]
[364648954,1749179137120,-150.0,0.00019759,2]
[364648955,1749179137143,-209.798812,0.00020187,2]
[364648956,1749179137164,-500.0,0.00020491,2]
[364648957,1749179137184,-229.52673067,0.00021745,2]
[364648958,1749179137206,-1200.0,0.00021745,2]
[364648959,1749179137228,-423.83542519,0.00021746,2]
[364648960,1749179137250,-212.976918,0.00021746,2]
[364648961,1749179137271,-842.5625,0.00021746,2]
[364648962,1749179137293,-1682.43824574,0.00021746,2]
[364648963,1749179248267,-500.0,0.00020491,2]
[364648964,1749179248290,-66.73728235,0.00021746,2]
[364649003,1749179433178,-160.0,0.00021745,2]
[364649004,1749179433189,-661.58472796,0.00021746,2]
[364649005,1749179433199,-300.0,0.00021783,2]
[364649006,1749179433209,-2991.2203984,0.00021784,2]
[364649007,1749179433218,-423.83542519,0.00021784,2]
[364649008,1749179433228,-88.34247645,0.00021784,2]
[364649009,1749179433241,-124.63444155,0.00021784,2]
[364649010,1749179433251,-150.0,0.00022558,2]
[364649011,1749179433260,-160.0,0.00022682,2]
[364649012,1749179433270,-229.52673067,0.00022682,2]
[364649013,1749179433280,-500.0,0.00022683,2]
[364649014,1749179433289,-207.4,0.00022685,2]
[364649015,1749179433298,-300.0,0.00022697,2]
[364649016,1749179433308,-440.0,0.00022698,2]
[364649017,1749179433318,-440.0,0.00022698,2]
[364649018,1749179433328,-440.0,0.00022698,2]
[364649019,1749179433338,-229.38283631,0.00022698,2]
[364649020,1749179433347,-440.0,0.00022698,2]
[364649021,1749179433357,-118.44427689,0.00022698,2]
[364649033,1749179438615,-291.20328032,0.00022698,2]
[364649034,1749179438626,-440.0,0.00022698,2]
[364649035,1749179438635,-97.34349262,0.00022698,2]
[364649036,1749179438722,-390.80650738,0.00022698,2]
[364649037,1749179438732,-165.26175854,0.00022698,2]
[364649038,1749179438776,-274.73824146,0.00022698,2]
[364649039,1749179438786,-440.0,0.00022698,2]
[364649040,1749179438797,-440.0,0.00022698,2]
[364649041,1749179438807,-440.0,0.00022698,2]
[364649042,1749179438817,-440.0,0.00022698,2]
[364649043,1749179438827,-440.0,0.00022698,2]
[364649044,1749179438837,-440.0,0.00022698,2]
[364649045,1749179438847,-440.0,0.00022698,2]
[364649046,1749179438857,-440.0,0.00022698,2]
[364649047,1749179438867,-428.18653142,0.00022698,2]
[364649048,1749179438878,-440.0,0.00022698,2]
[364649049,1749179438888,-500.00000004,0.00022698,2]
[364649050,1749179438898,-440.0,0.00022698,2]
[364649051,1749179438907,-440.0,0.00022698,2]
[364649052,1749179438916,-440.0,0.00022698,2]
[364649053,1749179438926,-440.0,0.00022698,2]
[364649054,1749179438936,-440.0,0.00022698,2]
[364649055,1749179438945,-362.72221011,0.00022698,2]
[364649056,1749179438955,-440.0,0.00022698,2]
[364649057,1749179438964,-440.0,0.00022698,2]
[364649058,1749179438974,-440.0,0.00022698,2]
[364649059,1749179438983,-440.0,0.00022698,2]
[364649060,1749179438993,-440.0,0.00022698,2]
[364649061,1749179439004,-440.0,0.00022698,2]
[364649062,1749179439013,-440.0,0.00022698,2]
[364649063,1749179439023,-440.0,0.00022698,2]
[364649064,1749179439033,-440.0,0.00022698,2]
[364649065,1749179439043,-549.02237634,0.00022699,2]
[364649066,1749179439053,-440.0,0.00022699,2]
[364649067,1749179439063,-440.0,0.00022699,2]
[364649068,1749179439072,-440.0,0.00022699,2]
[364649069,1749179439083,-440.0,0.00022699,2]
[364649070,1749179439093,-440.0,0.00022699,2]
[364649071,1749179439103,-440.0,0.00022699,2]
[364649072,1749179439112,-440.0,0.00022699,2]
[364649073,1749179439122,-440.0,0.00022699,2]
[364649074,1749179439131,-440.0,0.00022699,2]
[364649075,1749179439141,-440.0,0.00022699,2]
[364649076,1749179439152,-440.0,0.00022699,2]
[364649077,1749179439161,-605.7936471,0.000229,8]
[364649078,1749179439171,-605.79364686,0.00022969,8]
[364649079,1749179439180,-355.61746877,0.0002297,2]
[364649080,1749179439189,-440.0,0.00022971,2]
[364649081,1749179439199,-440.0,0.00022971,2]
[364649082,1749179439207,-440.0,0.00022971,2]
[364649083,1749179439217,-440.0,0.00022971,2]
[364649084,1749179439226,-440.0,0.00022971,2]
[364649085,1749179439236,-438.85681845,0.00022971,2]
[364649086,1749179439245,-440.0,0.00022971,2]
[364649087,1749179439254,-440.0,0.00022971,2]
[364649088,1749179439264,-440.0,0.00022971,2]
[364649089,1749179439273,-440.0,0.00022971,2]
[364649090,1749179439283,-460.47657222,0.00022971,2]
[364649091,1749179439292,-189.1519139,0.00022971,2]
[364649092,1749179439302,-159961.84963,0.00022971,2]
[364649093,1749179439311,-160.496,0.00022972,2]
[364649094,1749179439321,-440.0,0.00022972,2]
[364649095,1749179439332,-440.0,0.00022972,2]
[364649096,1749179439341,-440.0,0.00022972,2]
[364649097,1749179439351,-440.0,0.00022972,2]
[364649098,1749179439360,-488.15,0.00022972,2]
[364649099,1749179439369,-440.0,0.00022972,2]
[364649100,1749179439379,-440.0,0.00022972,2]
[364649101,1749179439388,-440.0,0.00022972,2]
[364649102,1749179439397,-440.0,0.00022972,2]
[364649103,1749179439407,-440.0,0.00022972,2]
[364649104,1749179439416,-440.0,0.00022972,2]
[364649105,1749179439425,-440.0,0.00022972,2]
[364649106,1749179439434,-440.0,0.00022972,2]
[364649107,1749179439444,-440.0,0.00022972,2]
[364649108,1749179439453,-440.0,0.00022972,2]
[364649109,1749179439462,-440.0,0.00022972,2]
[364649110,1749179439472,-440.0,0.00022972,2]
[364649111,1749179439481,-440.0,0.00022972,2]
[364649112,1749179439491,-440.0,0.00022972,2]
[364649113,1749179439501,-440.0,0.00022972,2]
[364649114,1749179439510,-440.0,0.00022972,2]
[364649115,1749179439632,-380.0,0.00022972,2]
[364649116,1749179439646,-427.33105535,0.00022972,2]
[364649117,1749179439661,-355.15985704,0.00022972,2]
[364649118,1749179439671,-440.0,0.00022972,2]
[364649119,1749179439681,-380.26245906,0.00022972,2]
[364649120,1749179439690,-440.0,0.00022972,2]
[364649121,1749179439700,-440.0,0.00022972,2]
[364649122,1749179439710,-440.0,0.00022972,2]
[364649123,1749179439719,-440.0,0.00022972,2]
[364649124,1749179439730,-440.0,0.00022972,2]
[364649125,1749179439740,-440.0,0.00022972,2]
[364649126,1749179439749,-440.0,0.00022972,2]
[364649127,1749179439759,-710.0,0.00022972,2]
[364649128,1749179439768,-440.0,0.00022972,2]
[364649129,1749179439779,-440.0,0.00022972,2]
[364649130,1749179439788,-440.0,0.00022972,2]